Cogmind - Beta 10.1 @@@ ROGUE MODE // 2020.10.10 @ 19:19:32 Player: Tone Result: Destroyed by as-70193 with Assembled Focal Cannon Performance ------------- Evolutions (4) 2000 Regions Visited (21) 4200 Robots Destroyed (343) 1715 Value Destroyed (10032) 10032 Prototype IDs (229) 4580 Alien Tech Used (0) 0 Bonus (6033) 6033 TOTAL SCORE: 28560 Bonus ------- High Alert Combat Kills 597 Follower Combat Kills 214 Entered Garrisons 600 Used RIF Installer 1500 Met Data Miner 300 Used Data Conduit 3000 Triggered Deep Caves Wall 500 Exposed GOLEM Chamber 500 Friendly Fire -1178 Cogmind --------- Core Integrity 0/850 Matter 14/300 Energy 99/100 System Corruption 1% Temperature Cool (12) Movement Core (50) Location -6/Deep Caves Parts ------- > --- POWER (1) -------- (None) > --- PROPULSION (3) --- (None) > --- UTILITY (8) ------ (None) > --- WEAPON (3) ------- (None) > --- INVENTORY (4) ---- Experimental Sensor Array Proton Cannon Flak Gun Remote Datajack Peak State ------------ > --- POWER ------------ F-cell Engine > --- PROPULSION ------- Improved Medium Treads Heavy Treads > --- UTILITY ---------- Experimental Heat Sink High-capacity Storage Unit High-capacity Storage Unit Experimental Energy Well Zionite Weapon Casing Zionite Light Carapace Zionite Light Carapace Thermal Barrier > --- WEAPON ----------- NK-0LA's Tesla Doomcannon > --- INVENTORY -------- Improved Medium Treads High-capacity Storage Unit Surveybot 24 Chip Zionite Weapon Casing Improved Field Recycling Unit Improved EM Pulse Cannon Proton Cannon Phase Cannon Gauss Rifle Flak Gun Flak Gun Rocket Array Rocket Array Remote Datajack Heavy Flail Self-destruct Interrupter Self-destruct Interrupter Self-destruct Interrupter [Rating: 97] Favorites ----------- Power Antimatter Reactor Engine Heavy Ion Engine Reactor Antimatter Reactor Propulsion Heavy Treads Treads Heavy Treads Leg Aluminum Leg Wheel Compact Wheel Hover Unit Zionite Glidesys I Utility High-capacity Storage Unit Device Experimental Sensor Array Storage High-capacity Storage Unit Processor Improved Signal Interpreter Hackware System Shield Protection Layered Medium Armor Plating Weapon Flak Gun Energy Gun Advanced Beam Rifle Energy Cannon Phase Cannon Ballistic Gun Flak Gun Launcher Precision Grenade Launcher Special Weapon Remote Datajack Impact Weapon Heavy Flail Slashing Weapon Katana Special Melee Weapon Datajack Build | -11 -10 -10 -9 -9 -9 -8 -8 -8 -8 -7 -7 -7 -7 -7 -7 -6 -6 -6 -6 -6 -6 ------- Run | Scr Mat Min Mat Sto Gar Mat Gar Mat Gar Fac Was Fac Low Low Dat Pro Fac Low Low Zio Dee Slots Evolved 8 | . . . 2 . . 2 . . . 2 . . . . . . 2 . . . . Power . | . . . . . . . . . . . . . . . . . . . . . . Propulsion 1 | . . . . . . . . . . . . . . . . . 1 . . . . Utility 6 | . . . 1 . . 2 . . . 2 . . . . . . 1 . . . . Weapon 1 | . . . 1 . . . . . . . . . . . . . . . . . . Parts Attached 480 | . 16 3 24 35 6 37 27 11 15 44 10 27 24 17 12 18 22 28 22 41 41 Power 16 | . 1 1 3 1 . 1 . 1 . 2 1 . . . 1 . . . . 2 2 Engine 12 | . 1 1 3 1 . 1 . 1 . 2 . . . . . . . . . 1 1 Core . | . . . . . . . . . . . . . . . . . . . . . . Reactor 4 | . . . . . . . . . . . 1 . . . 1 . . . . 1 1 Propulsion 57 | . 8 1 9 10 2 5 5 2 2 4 1 . . . . . 3 . . 1 4 Treads 45 | . 4 1 7 9 2 3 4 2 2 4 1 . . . . . 3 . . 1 2 Leg 1 | . . . . . . . . . . . . . . . . . . . . . 1 Wheel 10 | . 4 . 2 1 . 2 1 . . . . . . . . . . . . . . Hover 1 | . . . . . . . . . . . . . . . . . . . . . 1 Flight . | . . . . . . . . . . . . . . . . . . . . . . Utility 207 | . 3 . 3 1 2 10 11 5 5 20 5 16 18 8 5 11 12 25 13 15 19 Device 96 | . . . 1 . . 1 7 1 3 5 1 6 10 6 1 8 8 18 9 4 7 Storage 19 | . 3 . 1 . 1 3 . . . . . 1 . . . . . 3 . 2 5 Processor 9 | . . . 1 . . . . . . . 1 1 2 . 2 . . . . 2 . Hackware 16 | . . . . 1 . 2 1 3 1 4 1 3 . . . . . . . . . Protection 67 | . . . . . 1 4 3 1 1 11 2 5 6 2 2 3 4 4 4 7 7 Artifact . | . . . . . . . . . . . . . . . . . . . . . . Weapon 200 | . 4 1 9 23 2 21 11 3 8 18 3 11 6 9 6 7 7 3 9 23 16 Energy Gun 17 | . 3 1 2 1 . 3 4 . 1 . . . . . . . . . . . 2 Energy Cannon 42 | . . . 4 1 . 1 2 . 2 3 . 3 2 2 2 2 3 2 2 7 4 Ballistic Gun 83 | . 1 . 2 13 1 6 3 2 1 8 2 3 2 5 4 3 3 . 5 14 5 Ballistic Cannon . | . . . . . . . . . . . . . . . . . . . . . . Launcher 19 | . . . 1 2 1 2 . . 2 3 . 1 1 . . 1 . . 2 1 2 Special Weapon 13 | . . . . . . . 1 1 1 4 1 2 . . . . 1 1 . . 1 Impact Weapon 9 | . . . . . . . . . . . . 2 1 2 . 1 . . . 1 2 Slashing Weapon 13 | . . . . 6 . 5 1 . 1 . . . . . . . . . . . . Piercing Weapon . | . . . . . . . . . . . . . . . . . . . . . . Special Melee Weapon 4 | . . . . . . 4 . . . . . . . . . . . . . . . Unidentified Prototypes 18 | . . . 3 2 . 1 . . . 3 . . . . . . . 1 . 1 7 Parts Lost 50 | . 4 3 4 2 2 5 4 2 2 1 . . . . 3 2 2 . 1 1 12 Power 6 | . 1 1 . . . 1 . . . . . . . . 1 . . . . 1 1 Propulsion 10 | . . 1 2 1 1 . . 1 2 . . . . . . . . . . . 2 Utility 9 | . . . . . . 2 1 . . 1 . . . . 1 . . . . . 4 Weapon 25 | . 3 1 2 1 1 2 3 1 . . . . . . 1 2 2 . 1 . 5 Highest Loss Streak 12 | . 2 3 2 2 1 1 2 2 1 1 . . . . 3 1 2 . 1 1 12 Average Slot Usage (%) 92 | . 99 98 98 99 99 97 99 95 95 99 89 86 92 91 81 91 89 88 93 92 86 Engine 2 | . 13 13 11 11 11 9 9 8 9 6 5 . . . . . . . . . 5 Reactor 4 | . . . . . . . . . . . 1 7 7 7 6 7 6 6 6 5 . Treads 13 | . 20 13 12 20 21 10 17 17 18 15 10 7 7 7 7 7 11 13 13 13 12 Device 11 | . . . 9 . . 3 9 4 11 14 4 4 14 14 10 14 17 13 12 12 10 Storage 25 | . 28 28 22 22 24 27 27 27 27 23 23 23 23 23 23 23 20 20 26 26 29 Processor 9 | . . . . . . . . . . . 2 4 14 15 18 15 13 13 13 11 . Protection 2 | . . . . . 7 9 3 2 1 11 10 4 . . 1 . . . . . 9 Energy Gun 1 | . 18 28 15 2 . 2 14 1 . . . . . . . . . . . . . Energy Cannon 5 | . . . 10 2 . 1 4 9 6 6 . 4 3 5 2 5 4 6 1 5 5 Ballistic Gun 12 | . 8 . 7 23 32 19 7 10 17 12 20 14 14 9 5 11 5 2 8 12 8 Impact Weapon 1 | . . . . . . . . . . . . . 3 5 4 3 6 6 4 . 1 Naked Turns 2 | . . . . . . . . . . . . . . . . . . . . . 2 Heaviest Build 213 | 13 56 57 67 66 81 122 123 130 130 143 169 169 140 143 135 143 146 174 173 213 204 Greatest Support 100 | 20 40 16 43 43 43 43 40 40 43 43 70 70 70 70 70 70 100 100 100 100 100 Greatest Overweight (x) 54 | . 3 3 4 4 1 7 7 3 3 3 3 2 1 2 1 2 1 1 1 54 5 Average Overweight (x) 4 | . 2 3 2 1 1 5 2 2 2 2 2 1 1 1 1 1 1 1 1 22 1 Largest Inventory Capacity 44 | . 18 18 18 18 24 28 28 28 28 28 28 28 28 28 28 28 28 36 36 44 44 Average Capacity 31 | . 17 18 18 18 19 24 28 28 28 28 28 28 28 28 28 28 28 28 36 36 35 Most Carried 44 | . 10 12 18 18 23 28 28 28 28 28 28 28 28 28 28 24 28 36 36 42 44 Average Carried 31 | . 8 10 16 17 18 23 27 27 27 27 27 27 27 27 24 22 26 28 35 35 33 Final Capacity 44 | 6 18 18 18 18 24 28 28 28 28 28 28 28 28 28 28 28 28 36 36 44 4 Final Carried 42 | 6 10 12 18 16 23 28 28 28 28 28 28 28 28 28 24 23 28 36 35 42 4 Class Distribution -------------------- 53% | Hauler-Mutant 15% | Hauler-Assassin 10% | Bothacker-Mutant 4% | Bothacker-Tank 3% | Mutant 3% | Hauler-Skirmisher Dominant Class ---------------- Mutant | -10/Materials Mutant | -10/Mines Gunner | -9/Materials Gunner | -9/Storage Tank | -9/Garrison Bothacker-Tank | -8/Materials Bothacker-Mutant | -8/Garrison Bothacker-Mutant | -8/Materials Bothacker-Mutant | -8/Garrison Bothacker-Mutant | -7/Factory Bothacker-Tank | -7/Waste Hauler-Mutant | -7/Factory Hauler-Assassin | -7/Lower Caves Hauler-Assassin | -7/Lower Caves Hauler-Assassin | -7/Data Miner Hauler-Assassin | -6/Proximity Caves Hauler-Assassin | -6/Factory Hauler-Assassin | -6/Lower Caves Hauler-Assassin | -6/Lower Caves Hauler-Mutant | -6/Zion Bothacker-Mutant | -6/Deep Caves Resources | -11 -10 -10 -9 -9 -9 -8 -8 -8 -8 -7 -7 -7 -7 -7 -7 -6 -6 -6 -6 -6 -6 ----------- Run | Scr Mat Min Mat Sto Gar Mat Gar Mat Gar Fac Was Fac Low Low Dat Pro Fac Low Low Zio Dee Matter Collected 9803 | 170 196 25 348 714 230 733 462 160 480 614 503 470 549 679 341 474 120 835 674 943 83 Remotely . | . . . . . . . . . . . . . . . . . . . . . . Salvage Created 13034 | . 701 42 1023 1269 379 998 777 160 777 646 1388 514 316 329 271 231 120 137 234 2025 697 Parts 628 | . 42 3 46 84 21 64 43 8 44 42 20 31 6 3 6 7 9 4 11 129 5 Haulers Intercepted 11 | . . . 4 3 . 1 . 2 . 1 . . . . . . . . . . . Recyclers Shooed 8 | . . . 4 1 . . . . . . . 3 . . . . . . . . . Parts Field Recycled 46 | . . . . . . . . . . . . . . . . . . . 16 28 2 Retrieved Matter 481 | . . . . . . . . . . . . . . . . . . . 133 302 46 Parts Self-Destructed 29 | . . . . . . . . . . . . . 5 1 . 5 . . 13 5 . Prevented 12 | . . . . . . . . . . . . . . 5 . 2 . 4 1 . . Kills | -11 -10 -10 -9 -9 -9 -8 -8 -8 -8 -7 -7 -7 -7 -7 -7 -6 -6 -6 -6 -6 -6 ------- Run | Scr Mat Min Mat Sto Gar Mat Gar Mat Gar Fac Was Fac Low Low Dat Pro Fac Low Low Zio Dee Combat Hostiles Destroyed 230 | . 15 1 14 26 11 22 19 1 19 12 5 5 4 2 3 5 2 2 10 12 40 Melee 5 | . 1 . . . . 2 1 . . . . . . . . . . . . . 1 Guns 105 | . 14 1 7 17 9 12 11 1 10 4 5 . 1 . . 2 . . 2 5 4 Cannons 26 | . . . 3 3 . 1 6 . 2 3 . 2 . 1 . . 1 . . 4 . AOE 78 | . . . 4 6 2 7 . . 7 5 . 3 3 . . 2 . . 7 . 32 Classes Destroyed 24 | . 5 . 3 1 . 2 . . 1 1 1 . 1 2 . . . . . 5 2 Worker 12 | . . . 3 4 . . . 1 . 3 . 1 . . . . . . . . . Builder 7 | . 1 . . . . 2 . . . 3 . 1 . . . . . . . . . Hauler 11 | . . . 4 3 . 1 . 2 . 1 . . . . . . . . . . . Recycler 11 | . 2 . 2 1 . 2 . . . . . 4 . . . . . . . . . Minesweeper 2 | . . . . . . . . . . . . . . 2 . . . . . . . Mechanic 1 | . . . . . . . . . . 1 . . . . . . . . . . . Operator 2 | . . . . 1 . 1 . . . . . . . . . . . . . . . Watcher 7 | . 1 . 2 1 . 2 . . . . . 1 . . . . . . . . . Swarmer 51 | . 5 . 3 7 3 8 5 . 7 4 . 3 3 . . . . . 3 . . Grunt 78 | . 10 1 6 10 6 10 12 1 11 3 . . . . . 3 . . 5 . . Duelist 3 | . . . . . . 1 . . . 1 . . . . . . . . 1 . . Sentry 24 | . . . 5 9 2 2 2 . . 2 . 1 . . . . 1 . . . . Specialist 1 | . . . . . . . . . 1 . . . . . . . . . . . . Hunter 6 | . . . . . . . . . . . . . . 2 . 2 . 2 . . . Programmer 7 | . . . . . . 1 . . . 2 . 1 1 . . . 1 . 1 . . Compactor 5 | . . . . . . . . . . . 5 . . . . . . . . . . Enhanced Grunt 3 | . . . . . . . . . . . . . . . 3 . . . . . . Zionite 49 | . . . . . . . . . . . . . . . . . . . . 49 . Z-Technician 1 | . . . . . . . . . . . . . . . . . . . . . 1 Decomposer 3 | . . . . . . . . . . . . . . 3 . . . . . . . Packrat 3 | . . . . . . . . . . . . . 3 . . . . . . . . Samaritan 1 | . . . . . . . . . . . . . 1 . . . . . . . . Tinkerer 1 | . . . . . . . . . . . . . . . . . . . . 1 . Assembled 36 | . . . . . . . . . . . . . . . . . . . . . 36 Golem 4 | . . . . . . . . . . . . . . . . . . . . . 4 Surgeon 1 | . . . . . . . . . . . . . . . . . . . . 1 . Wasp 1 | . . . . . . . . . . . . . . . . . . . . 1 . Thug 2 | . . . . 1 . . . . . . . . . . . . . . . 1 . Savage 3 | . . . . . . . . . . . . . . . . . . . . 3 . Martyr 1 | . . . . . . . . . . . . . . . . . . . . 1 . Mutant 4 | . . . . . . . . . . . . . . . . . . . . 4 . Best Kill Streak 34 | . 6 1 6 8 3 8 6 2 6 6 3 8 3 1 2 4 1 2 3 17 34 Combat Bots Only 34 | . 4 1 3 6 3 5 6 1 6 4 3 3 3 1 2 4 1 2 3 2 34 Max Kills in Single Turn 12 | . 1 1 3 3 2 4 1 1 3 6 1 2 1 1 1 2 1 1 1 2 12 Gunslinging . | . . . . . . . . . . . . . . . . . . . . . . Exploded 12 | . . . 3 2 2 3 . . 3 4 . 1 1 . . 2 . . 1 . 12 Melee 1 | . 1 . . . . 1 1 . . . . . . . . . . . . . 1 Uniques/NPCs Destroyed 2 | . . . . . . . . . . . . . . . . . . . . 2 . NK-0LA (-6/Zion) Imprinter (-6/Zion) Combat | -11 -10 -10 -9 -9 -9 -8 -8 -8 -8 -7 -7 -7 -7 -7 -7 -6 -6 -6 -6 -6 -6 -------- Run | Scr Mat Min Mat Sto Gar Mat Gar Mat Gar Fac Was Fac Low Low Dat Pro Fac Low Low Zio Dee Damage Taken 13014 | . 714 73 402 1188 262 950 838 389 570 681 . 273 194 147 564 1029 153 177 200 1691 2519 Core 1756 | . 131 . 40 99 24 96 52 78 56 67 . . 16 20 93 124 6 18 . 67 769 Absorbed by Shields . | . . . . . . . . . . . . . . . . . . . . . . Reduced by Siege Mode 55 | . . . . . . . . . . . . . . . . . . 30 . . 25 Core Remaining (%) 61 | 100 . 47 . . 59 . . . 48 . . . . . . 54 . . . . . Volleys Fired 738 | . 41 6 57 59 26 65 49 21 45 39 25 33 11 11 8 22 24 16 20 115 45 Largest 3 | . 2 2 3 3 3 3 3 3 3 3 3 3 3 3 3 3 2 2 3 3 3 Hottest 201 | . 90 105 181 136 69 114 201 136 123 136 84 138 92 138 166 84 103 144 90 138 146 Shots Fired 1507 | . 82 12 155 149 43 187 115 41 99 82 66 54 20 33 13 34 25 19 24 197 57 Gun 1073 | . 82 12 98 134 42 179 96 20 67 44 62 27 11 23 6 18 1 . 6 129 16 Cannon 343 | . . . 56 9 . 4 18 15 24 24 . 15 5 10 7 12 22 17 4 64 37 Launcher 52 | . . . 1 6 1 4 . . 4 3 . 4 4 . . 4 . . 14 4 3 Special 39 | . . . . . . . 1 6 4 11 4 8 . . . . 2 2 . . 1 Kinetic 841 | . 27 . 39 120 42 148 40 19 63 44 62 27 11 23 6 18 1 . 6 129 16 Thermal 392 | . 27 12 80 16 . 35 74 16 28 24 . 5 5 . . 6 19 10 4 . 31 Explosive 52 | . . . 1 6 1 4 . . 4 3 . 4 4 . . 4 . . 14 4 3 Electromagnetic 183 | . 28 . 35 7 . . . . . . . 10 . 10 7 6 3 7 . 64 6 Robot Hit Streak 32 | . 28 6 22 19 19 24 32 14 10 14 20 13 6 9 12 9 4 10 27 19 14 Robot Miss Streak 10 | . 2 2 5 3 1 3 1 3 3 4 7 10 3 8 2 5 1 . 2 10 6 Penetration Max . | . . . . . . . . . . . . . . . . . . . . . . Secondary Targets 17 | . 2 1 . . . . 3 . 1 . 2 . . . . . . . . 8 . Max Gunslinging Chain 1 | . 1 1 . . . . 1 . 1 . 1 . . . . . . . . 1 . Shots Hit Robots 1157 | . 57 9 109 109 28 144 82 26 70 62 64 36 18 30 12 21 5 9 17 183 66 Core Hits 732 | . 32 4 39 60 16 48 32 5 38 32 70 29 9 10 10 24 1 . 24 130 119 Critical Hits 11 | . . . 2 3 . 1 . 1 1 1 . . . . . . . . . 2 . Critical Kills 3 | . . . . 1 . . . 1 1 . . . . . . . . . . . . Critical Parts Destroyed 8 | . . . 2 2 . 1 . . . 1 . . . . . . . . . 2 . Melee Attacks 148 | . . . . 20 . 22 3 . 17 7 . 2 8 5 8 8 1 . 1 . 46 Impact 79 | . . . . . . . . . . . . 2 8 5 8 8 1 . 1 . 46 Slashing 62 | . . . . 20 . 15 3 . 17 7 . . . . . . . . . . . Piercing . | . . . . . . . . . . . . . . . . . . . . . . Sneak Attacks 23 | . . . . 4 . 7 3 . . . . . 5 4 . . . . . . . Combat Hostiles 4 | . . . . . . 1 3 . . . . . . . . . . . . . . Follow-up Attacks . | . . . . . . . . . . . . . . . . . . . . . . Damage Inflicted 33124 | . 783 130 2216 2830 606 3139 1774 480 2350 1907 2028 992 802 790 273 805 137 277 1280 5522 4003 Guns 14197 | . 718 130 1162 1526 469 1836 1146 230 704 897 2028 397 82 229 135 223 . . 192 1911 182 Cannons 6380 | . . . 824 174 . 89 325 250 150 423 . 269 . 244 138 101 137 277 38 2688 253 Explosions 8226 | . 23 . 227 757 137 707 . . 542 511 . 326 334 . . 481 . . 1050 897 2234 Melee 4126 | . . . . 362 . 501 303 . 954 . . . 361 317 . . . . . . 1328 Ramming 195 | . 42 . 3 11 . 6 . . . 76 . . 25 . . . . . . 26 6 Kinetic 11507 | . 151 . 487 1349 469 1392 500 210 673 897 2028 397 82 229 135 223 . . 192 1911 182 Thermal 4955 | . 251 130 1023 260 . 533 971 270 181 423 . 31 . . . . 46 . 38 637 161 Explosive 7417 | . . . 148 757 137 707 . . 542 511 . 326 334 . . 481 . . 1050 260 2164 Electromagnetic 4924 | . 339 . 555 91 . . . . . . . 238 . 244 138 101 91 277 . 2688 162 Impact 2006 | . . . . . . . . . . . . . 361 317 . . . . . . 1328 Slashing 2120 | . . . . 362 . 501 303 . 954 . . . . . . . . . . . . Piercing . | . . . . . . . . . . . . . . . . . . . . . . Highest Corruption 18 | . . . . . . . . . . 2 16 17 18 18 18 18 . . . 1 1 Average Corruption 10 | . . . . . . . . . . 1 12 16 17 18 18 18 . . . 1 1 Corruption Purged . | . . . . . . . . . . . . . . . . . . . . . . Effects 462 | . . . . . . . . . . 9 22 53 104 123 27 97 . . . 10 17 Message Errors 90 | . . . . . . . . . . 5 2 9 17 25 5 15 . . . 3 9 Matter Fused 85 | . . . . . . . . . . . . 10 19 30 8 18 . . . . . Heat Flow Errors 27 | . . . . . . . . . . . 2 3 10 4 1 7 . . . . . Energy Discharges 49 | . . . . . . . . . . 1 3 3 13 10 3 12 . . . 1 3 Parts Rejected 1 | . . . . . . . . . . . . . . . . 1 . . . . . Data Loss (minor) 58 | . . . . . . . . . . 1 1 4 16 15 4 13 . . . 2 2 Data Loss (major) 14 | . . . . . . . . . . . . 2 5 3 . 4 . . . . . Misfires 13 | . . . . . . . . . . . 1 2 3 4 . 3 . . . . . Alerts 5 | . . . . . . . . . . . . . 1 2 1 1 . . . . . Misdirections 56 | . . . . . . . . . . . 1 3 17 20 2 13 . . . . . Targeting Errors 59 | . . . . . . . . . . 2 10 15 3 10 3 9 . . . 4 3 Weapon Failures 5 | . . . . . . . . . . . 2 2 . . . 1 . . . . . Overload Shots . | . . . . . . . . . . . . . . . . . . . . . . Overflow Damage 1225 | . . . 25 47 9 203 58 . 146 30 . 18 201 232 . 17 . . 37 54 148 Projectiles 101 | . . . 15 . . . . . . 30 . 17 . . . . . . . 39 . Explosions 238 | . . . 10 47 9 44 . . . . . 1 24 . . 17 . . 37 15 34 Melee 886 | . . . . . . 159 58 . 146 . . . 177 232 . . . . . . 114 Knockbacks 9 | . 1 . . . . . . . . . . . 3 2 . . . . . . 3 Impact 9 | . 1 . . . . . . . . . . . 3 2 . . . . . . 3 Kinetic . | . . . . . . . . . . . . . . . . . . . . . . Secondary . | . . . . . . . . . . . . . . . . . . . . . . Self-Inflicted Damage 395 | . . . . 29 . . . . . . . 52 . . . 31 . . . 112 171 Shots 12 | . . . . 1 . . . . . . . 1 . . . 1 . . . 5 4 Rammed 26 | . 12 . 1 3 . 1 . . . 5 . . 2 . . . . . . 1 1 Targets Rammed 29 | . 13 . 1 3 . 1 . . . 6 . . 2 . . . . . . 2 1 Kicked . | . . . . . . . . . . . . . . . . . . . . . . Crushed 3 | . 1 . . . . . . . . 1 . . . . . . . . . 1 . Highest Temperature 330 | . 238 214 197 200 42 59 309 225 289 63 263 225 256 262 140 264 116 330 102 319 22 Average Temperature 68 | . 64 104 50 29 13 11 93 89 96 23 89 88 75 96 45 87 35 99 36 68 10 Received Heat Transfer 2816 | . 270 39 147 336 87 369 387 153 306 228 . . . . 72 90 36 . 45 45 206 Effects 6 | . 2 . . . . . . . . . . 2 1 1 . . . . . . . Energy Bleed 2 | . . . . . . . . . . . . . 1 1 . . . . . . . Interference 4 | . 2 . . . . . . . . . . 2 . . . . . . . . . Siege Activations 5 | . . . . . . . . . . . . . . . 1 . . 1 . . 3 Total Turns 71 | . . . . . . . . . . . . . . . 8 . . 11 . . 52 Longest Duration 36 | . . . . . . . . . . . . . . . 8 . . 11 . . 36 Robots Corrupted 13 | . . . 1 . . . . . . . . . . 1 3 1 1 2 . 3 1 Combat Hostiles 12 | . . . . . . . . . . . . . . 1 3 1 1 2 . 3 1 Parts Fried 49 | . 1 . 2 2 . . . . . . . 4 4 3 3 3 1 4 . 22 . Impact Corruptions 30 | . . . . . . . . . . 1 . . 7 17 . . . . . . 5 Robots Melted 2 | . . . . . . . 1 . . . . . . . . . . . 1 . . Combat Hostiles 2 | . . . . . . . 1 . . . . . . . . . . . 1 . . Parts Melted 16 | . 1 1 3 1 . 1 4 . . . . . . . . . . . 4 1 . Heat Transferred 8420 | . 620 298 2200 481 . 962 1624 407 296 748 . 37 . . . . 37 . 37 550 123 Parts Sabotaged . | . . . . . . . . . . . . . . . . . . . . . . Parts Stolen . | . . . . . . . . . . . . . . . . . . . . . . Parts Stripped . | . . . . . . . . . . . . . . . . . . . . . . Power Chain Reactions 14 | . 1 . 2 . . . . . . . . . . . . . . . . 10 1 Missiles Intercepted . | . . . . . . . . . . . . . . . . . . . . . . Alert | -11 -10 -10 -9 -9 -9 -8 -8 -8 -8 -7 -7 -7 -7 -7 -7 -6 -6 -6 -6 -6 -6 ------- Run | Scr Mat Min Mat Sto Gar Mat Gar Mat Gar Fac Was Fac Low Low Dat Pro Fac Low Low Zio Dee Peak Influence 953 | . 337 87 256 429 682 765 953 493 581 339 66 127 . . . . 59 . . . . Initial 464 | . . 87 29 87 272 332 427 464 102 304 54 46 . . . . . . . . . Average 329 | . 169 77 137 140 508 603 699 403 429 195 62 50 . . . . 25 . . . . Maximum Alert Level 3 | . 1 . 1 2 2 3 3 2 2 1 . . . . . . . . . . . Low Security (%) 41 | . 56 100 76 78 . . . 17 9 54 100 100 . . . . 100 . . . . Level 1 16 | . 43 . 23 19 31 10 . 5 13 45 . . . . . . . . . . . Level 2 34 | . . . . 1 68 65 59 76 76 . . . . . . . . . . . . Level 3 7 | . . . . . . 23 40 . . . . . . . . . . . . . . Level 4 . | . . . . . . . . . . . . . . . . . . . . . . Level 5 . | . . . . . . . . . . . . . . . . . . . . . . High Security . | . . . . . . . . . . . . . . . . . . . . . . Max Security . | . . . . . . . . . . . . . . . . . . . . . . Squads Dispatched 27 | . 4 . 2 9 . 3 . . . 5 . 2 . . . . 2 . . . . Investigation 6 | . 3 . 1 . . . . . . . . 1 . . . . 1 . . . . Extermination 5 | . . . . . . . . . . 3 . 1 . . . . 1 . . . . Reinforcement 8 | . 1 . 1 2 . 2 . . . 2 . . . . . . . . . . . Assault 2 | . . . . 2 . . . . . . . . . . . . . . . . . Garrison 6 | . . . . 5 . 1 . . . . . . . . . . . . . . . Intercept . | . . . . . . . . . . . . . . . . . . . . . . Construction Impeded 2 | . . . . 1 . 1 . . . . . . . . . . . . . . . Haulers Reinforced . | . . . . . . . . . . . . . . . . . . . . . . Stealth | -11 -10 -10 -9 -9 -9 -8 -8 -8 -8 -7 -7 -7 -7 -7 -7 -6 -6 -6 -6 -6 -6 --------- Run | Scr Mat Min Mat Sto Gar Mat Gar Mat Gar Fac Was Fac Low Low Dat Pro Fac Low Low Zio Dee Distress Signals 15 | . 4 . 3 1 . 4 . . . 1 . 2 . . . . . . . . . Communications Jammed . | . . . . . . . . . . . . . . . . . . . . . . Distress Signals . | . . . . . . . . . . . . . . . . . . . . . . Times Spotted 392 | . 27 2 24 38 11 41 22 13 20 26 6 8 5 2 3 6 2 2 9 72 53 Peak Tracking Total 34 | . 5 2 4 7 5 8 6 3 5 5 2 3 4 1 2 5 1 2 3 5 34 Tactical Retreats 37 | . 1 1 1 3 1 7 3 3 3 1 . . . . . . . . . 10 3 Traps | -11 -10 -10 -9 -9 -9 -8 -8 -8 -8 -7 -7 -7 -7 -7 -7 -6 -6 -6 -6 -6 -6 ------- Run | Scr Mat Min Mat Sto Gar Mat Gar Mat Gar Fac Was Fac Low Low Dat Pro Fac Low Low Zio Dee Traps Triggered 24 | . 1 . . 5 4 . 3 . 7 3 . 1 . . . . . . . . . Indirectly . | . . . . . . . . . . . . . . . . . . . . . . Trap Hack Attempts . | . . . . . . . . . . . . . . . . . . . . . . Triggered . | . . . . . . . . . . . . . . . . . . . . . . Disarmed . | . . . . . . . . . . . . . . . . . . . . . . Reprogrammed . | . . . . . . . . . . . . . . . . . . . . . . Reused 1 | . . . . . . . . . . . . . . . 1 . . . . . . Traps Extracted . | . . . . . . . . . . . . . . . . . . . . . . Installed 3 | . . . . . . . . . . . . . . . 3 . . . . . . Triggered 2 | . . . . . . . . . . . . . . 2 . . . . . . . Machines | -11 -10 -10 -9 -9 -9 -8 -8 -8 -8 -7 -7 -7 -7 -7 -7 -6 -6 -6 -6 -6 -6 ---------- Run | Scr Mat Min Mat Sto Gar Mat Gar Mat Gar Fac Was Fac Low Low Dat Pro Fac Low Low Zio Dee Machines Disabled 23 | . . . 1 3 2 4 3 . 3 2 . . . . . . 1 . . 1 3 Max in Single Turn 2 | . . . 1 1 1 2 1 . 1 1 . . . . . . 1 . . 1 1 Garrison Relay 8 | . . . . . 2 . 3 . 3 . . . . . . . . . . . . Machines Sabotaged . | . . . . . . . . . . . . . . . . . . . . . . Garrisons Compromised . | . . . . . . . . . . . . . . . . . . . . . . Overloaded Fab Kills . | . . . . . . . . . . . . . . . . . . . . . . Fab Network Shutdowns . | . . . . . . . . . . . . . . . . . . . . . . Hacking | -11 -10 -10 -9 -9 -9 -8 -8 -8 -8 -7 -7 -7 -7 -7 -7 -6 -6 -6 -6 -6 -6 --------- Run | Scr Mat Min Mat Sto Gar Mat Gar Mat Gar Fac Was Fac Low Low Dat Pro Fac Low Low Zio Dee Machines Accessed 53 | . 4 . 3 15 . 2 . 3 . 6 . 4 . . 4 . 8 2 2 . . Terminals 32 | . 2 . 2 14 . 1 . 2 . 3 . 3 . . . . 5 . . . . Fabricators 3 | . . . . . . . . . . 1 . . . . . . 2 . . . . Repair Stations 2 | . . . . . . . . . . . . 1 . . . . 1 . . . . Recycling Units 4 | . 2 . 1 . . . . . . 1 . . . . . . . . . . . Scanalyzers 1 | . . . . . . . . . . 1 . . . . . . . . . . . Garrison Access 3 | . . . . 1 . 1 . 1 . . . . . . . . . . . . . Total Hacks 152 | . 10 . 10 48 . 7 . 4 . 11 . 10 . . 24 . 24 2 2 . . Successful 96 | . 7 . 9 25 . 3 . 2 . 8 . 3 . . 24 . 11 2 2 . . Failed 56 | . 3 . 1 23 . 4 . 2 . 3 . 7 . . . . 13 . . . . Catastrophic 15 | . . . . 8 . 1 . . . . . 2 . . . . 4 . . . . Database Lockouts . | . . . . . . . . . . . . . . . . . . . . . . Manual 87 | . 10 . 11 37 . 6 . 3 . 3 . 1 . . . . 11 . . 5 . Terminals 98 | . 8 . 9 47 . 5 . 3 . 6 . 4 . . . . 16 . . . . Fabricators 7 | . . . . . . . . . . 2 . . . . . . 5 . . . . Repair Stations 9 | . . . . . . . . . . . . 6 . . . . 3 . . . . Recycling Units 4 | . 2 . 1 . . . . . . 1 . . . . . . . . . . . Scanalyzers 2 | . . . . . . . . . . 2 . . . . . . . . . . . Garrison Access 4 | . . . . 1 . 2 . 1 . . . . . . . . . . . . . Terminal Hacks 58 | . 2 . 4 15 . 1 . 1 . 3 . 1 . . 24 . 3 2 2 . . Record 12 | . . . . . . . . . . . . . . . 11 . . . 1 . . Part Schematic 7 | . . . 2 . . . . . . . . . . . 5 . . . . . . Robot Schematic 5 | . . . . . . . . . . . . . . . 5 . . . . . . Robot Analysis 3 | . 2 . 1 . . . . . . . . . . . . . . . . . . Prototype ID Bank 4 | . . . . . . . . . . . . . . . 3 . 1 . . . . Open Door 10 | . . . . 7 . . . . . . . . . . . . . 2 1 . . Branch Access Points 3 | . . . 1 . . . . . . . . 1 . . . . 1 . . . . Terminal Index 2 | . . . . 1 . . . . . 1 . . . . . . . . . . . Unreport Threat 5 | . . . . 3 . 1 . 1 . . . . . . . . . . . . . Locate Traps 3 | . . . . 1 . . . . . 1 . . . . . . 1 . . . . Recall Assault 1 | . . . . 1 . . . . . . . . . . . . . . . . . Hauler Manifests 2 | . . . . 1 . . . . . 1 . . . . . . . . . . . Zone Layout 1 | . . . . 1 . . . . . . . . . . . . . . . . . Fabricator Hacks 4 | . . . . . . . . . . 2 . . . . . . 2 . . . . Load Schematic 3 | . . . . . . . . . . 1 . . . . . . 2 . . . . Build 1 | . . . . . . . . . . 1 . . . . . . . . . . . Repair Station Hacks 3 | . . . . . . . . . . . . 2 . . . . 1 . . . . Scan Component 3 | . . . . . . . . . . . . 2 . . . . 1 . . . . Recycling Unit Hacks . | . . . . . . . . . . . . . . . . . . . . . . Scanalyzer 1 | . . . . . . . . . . 1 . . . . . . . . . . . Insert Component 1 | . . . . . . . . . . 1 . . . . . . . . . . . Garrison Access Hacks 3 | . . . . 1 . 1 . 1 . . . . . . . . . . . . . Unlock Access 3 | . . . . 1 . 1 . 1 . . . . . . . . . . . . . Unauthorized Hacks 27 | . 5 . 5 9 . 1 . . . 2 . . . . . . 5 . . . . Terminals 23 | . 3 . 4 9 . . . . . 2 . . . . . . 5 . . . . Track 13 | . 2 . 2 5 . . . . . 1 . . . . . . 3 . . . . Botnet 7 | . 1 . 2 2 . . . . . 1 . . . . . . 1 . . . . Disrupt 1 | . . . . 1 . . . . . . . . . . . . . . . . . Operators 2 | . . . . 1 . . . . . . . . . . . . 1 . . . . Fabricators . | . . . . . . . . . . . . . . . . . . . . . . Repair Stations . | . . . . . . . . . . . . . . . . . . . . . . Recycling Units 3 | . 2 . 1 . . . . . . . . . . . . . . . . . . Tunnel 3 | . 2 . 1 . . . . . . . . . . . . . . . . . . Scanalyzers . | . . . . . . . . . . . . . . . . . . . . . . Garrison Access 1 | . . . . . . 1 . . . . . . . . . . . . . . . Restock 1 | . . . . . . 1 . . . . . . . . . . . . . . . Data Cores Recovered . | . . . . . . . . . . . . . . . . . . . . . . Used . | . . . . . . . . . . . . . . . . . . . . . . Hacking Detections 34 | . 2 . 2 10 . 2 . 1 . 6 . 4 . . . . 7 . . . . Full Trace Events 2 | . . . . . . . . . . . . 1 . . . . 1 . . . . Feedback Events . | . . . . . . . . . . . . . . . . . . . . . . Feedback Blocked . | . . . . . . . . . . . . . . . . . . . . . . Robot Schematics Acquired 5 | . . . . . . . . . . . . . . . 5 . . . . . . Robots Built . | . . . . . . . . . . . . . . . . . . . . . . Matter . | . . . . . . . . . . . . . . . . . . . . . . Time . | . . . . . . . . . . . . . . . . . . . . . . Total Robot Build Rating . | . . . . . . . . . . . . . . . . . . . . . . Part Schematics Acquired 7 | . . . 2 . . . . . . . . . . . 5 . . . . . . Parts Built 1 | . . . . . . . . . . 1 . . . . . . . . . . . Matter 124 | . . . . . . . . . . 124 . . . . . . . . . . . Time 62 | . . . . . . . . . . 62 . . . . . . . . . . . Total Part Build Rating 2 | . . . . . . . . . . 2 . . . . . . . . . . . Parts Repaired . | . . . . . . . . . . . . . . . . . . . . . . Time . | . . . . . . . . . . . . . . . . . . . . . . Parts Recycled . | . . . . . . . . . . . . . . . . . . . . . . Recycled Matter . | . . . . . . . . . . . . . . . . . . . . . . Retrieved Matter . | . . . . . . . . . . . . . . . . . . . . . . Retrieved Components . | . . . . . . . . . . . . . . . . . . . . . . Parts Scanalyzed 1 | . . . . . . . . . . 1 . . . . . . . . . . . Part Schematics Acquired . | . . . . . . . . . . . . . . . . . . . . . . Parts Damaged . | . . . . . . . . . . . . . . . . . . . . . . Bothacking | -11 -10 -10 -9 -9 -9 -8 -8 -8 -8 -7 -7 -7 -7 -7 -7 -6 -6 -6 -6 -6 -6 ------------ Run | Scr Mat Min Mat Sto Gar Mat Gar Mat Gar Fac Was Fac Low Low Dat Pro Fac Low Low Zio Dee Used RIF Installer 3 | . . . . . 1 . 1 . 1 . . . . . . . . . . . . Command Fork 1 | . . . . . . . 1 . . . . . . . . . . . . . . Threat Obfuscator 1 | . . . . . . . . . 1 . . . . . . . . . . . . Robots Hacked 29 | . . . . . . 4 1 3 2 7 4 5 . . . . 1 1 . . 1 Non-combat 11 | . . . . . . . . . . 4 . 5 . . . . 1 1 . . . Combat 18 | . . . . . . 4 1 3 2 3 4 . . . . . . . . . 1 Robot Hacks Applied 32 | . . . . . . 5 1 4 2 7 4 6 . . . . 1 1 . . 1 parse_system 2 | . . . . . . . . . . . . . . . . . . 1 . . 1 find_chute 2 | . . . . . . . . . . 1 . . . . . . 1 . . . . find_fabricator 1 | . . . . . . . . . . . . 1 . . . . . . . . . drop_inventory 1 | . . . . . . . . . . . . 1 . . . . . . . . . map_route 6 | . . . . . . . . . . 3 . 3 . . . . . . . . . ignore_targets 4 | . . . . . . . . . . . 4 . . . . . . . . . . find_garrison 2 | . . . . . . 1 . 1 . . . . . . . . . . . . . amplify_resonance 1 | . . . . . . . . 1 . . . . . . . . . . . . . reboot_system 1 | . . . . . . . 1 . . . . . . . . . . . . . . overwrite_iff 3 | . . . . . . 2 . . . 1 . . . . . . . . . . . formatsys_low 1 | . . . . . . . . . . . . 1 . . . . . . . . . formatsys_high 8 | . . . . . . 2 . 2 2 2 . . . . . . . . . . . Relay Couplers Released 36 | . . . . . 9 3 11 . 13 . . . . . . . . . . . . Machine Destruction 33 | . . . . . 9 . 11 . 13 . . . . . . . . . . . . Programmers 3 | . . . . . . 3 . . . . . . . . . . . . . . . Attached 13 | . . . . . . 2 1 3 1 4 1 1 . . . . . . . . . Robots Rewired 1 | . 1 . . . . . . . . . . . . . . . . . . . . Allies Hacked 2 | . . . . . . 1 . . . . . 1 . . . . . . . . . Hacks Repelled . | . . . . . . . . . . . . . . . . . . . . . . Allies | -11 -10 -10 -9 -9 -9 -8 -8 -8 -8 -7 -7 -7 -7 -7 -7 -6 -6 -6 -6 -6 -6 -------- Run | Scr Mat Min Mat Sto Gar Mat Gar Mat Gar Fac Was Fac Low Low Dat Pro Fac Low Low Zio Dee Total Allies 16 | . 1 . . 2 . 4 . 2 2 3 . 1 . . . . . . . . 1 Largest Group 2 | . 1 . . 2 . 1 1 2 2 2 . 1 . . . . . . . . 1 Highest-Rated Group 118 | . 8 . . 62 . 16 14 30 32 32 . 11 . . . . . . . . 118 Highest-Rated Ally 118 | . 8 . . 31 . 16 14 15 16 32 . 11 . . . . . . . . 118 Total Orders 1 | . . . . . . . . . . . . 1 . . . . . . . . . AID 1 | . . . . . . . . . . . . 1 . . . . . . . . . Ally Attacks 82 | . 2 . . 13 . 13 3 4 7 40 . . . . . . . . . . . Total Damage 1107 | . 10 . . 211 . 146 78 57 74 531 . . . . . . . . . . . Kills 10 | . . . . 4 . 1 1 . . 4 . . . . . . . . . . . Allies Corrupted . | . . . . . . . . . . . . . . . . . . . . . . Allies Melted . | . . . . . . . . . . . . . . . . . . . . . . Intel | -11 -10 -10 -9 -9 -9 -8 -8 -8 -8 -7 -7 -7 -7 -7 -7 -6 -6 -6 -6 -6 -6 ------- Run | Scr Mat Min Mat Sto Gar Mat Gar Mat Gar Fac Was Fac Low Low Dat Pro Fac Low Low Zio Dee Robot Analysis Total 118 | . 2 . 1 . . . . . . . . . . . 115 . . . . . . Derelict Logs Recovered 7 | . . . . . . . . . . . . . 1 1 . 1 . 2 2 . . Drone Launches . | . . . . . . . . . . . . . . . . . . . . . . Drone Recoveries . | . . . . . . . . . . . . . . . . . . . . . . Exploration | -11 -10 -10 -9 -9 -9 -8 -8 -8 -8 -7 -7 -7 -7 -7 -7 -6 -6 -6 -6 -6 -6 ------------- Run | Scr Mat Min Mat Sto Gar Mat Gar Mat Gar Fac Was Fac Low Low Dat Pro Fac Low Low Zio Dee Turns Passed 59211 | . 605 276 951 1837 1037 799 2087 487 2987 1729 321 802 2205 2160 477 1674 878 4250 2344 28457 2848 Spaces Moved 14834 | 1 286 193 467 658 522 268 653 202 848 706 107 311 931 1084 220 712 424 1777 911 2220 1333 Core 901 | . . . . . . . . . . . . . . . . . . . . 896 5 Treads 12727 | . 70 . 33 592 522 24 601 202 848 706 107 311 931 1084 220 712 424 1777 911 1324 1328 Legs 7 | 1 6 . . . . . . . . . . . . . . . . . . . . Wheels 1199 | . 210 193 434 66 . 244 52 . . . . . . . . . . . . . . Hover . | . . . . . . . . . . . . . . . . . . . . . . Flight . | . . . . . . . . . . . . . . . . . . . . . . Fastest Speed 50 | 120 120 130 130 140 180 140 170 200 200 200 180 180 180 180 180 180 180 180 180 180 50 Average Speed 336 | 120 137 130 134 176 180 157 200 204 204 212 207 186 180 180 180 180 180 180 180 1220 180 Slowest Speed 2750 | 120 180 130 180 220 180 280 220 220 220 220 220 200 180 200 180 200 180 180 180 2750 260 Overloaded Moves . | . . . . . . . . . . . . . . . . . . . . . . Propulsion Burnouts . | . . . . . . . . . . . . . . . . . . . . . . Robots Hopped . | . . . . . . . . . . . . . . . . . . . . . . Cave-ins Triggered . | . . . . . . . . . . . . . . . . . . . . . . Exploration Rate (%) 57 | 2 56 42 34 86 47 26 79 23 73 21 68 12 84 84 77 80 12 96 93 81 81 Regions Visited 21 Branch Regions 10 Pre-discovered Areas 32 | . 2 . 1 . . . . . . . . . . . 27 . . 1 1 . . Known Exits Taken 12 | . . . 1 1 . 1 . 1 . . . 1 1 1 1 1 1 1 1 . . Unknown Exits Taken 4 | 1 1 1 . . . . . . . . . . . . . . . . . 1 . Scrap Searched 18 | . . 1 . . . . . . . . . . 5 2 . 1 . 4 1 4 . Spaces Dug 139 | . . . 7 7 . 7 . . 10 23 . 2 6 1 7 12 13 7 24 . 13 Terrain Destroyed 446 | . 6 . 12 37 12 33 . 5 45 35 . 15 41 1 7 51 18 10 87 14 17 Melee 37 | . . . . 7 . 7 . . 1 1 . 2 1 1 7 8 1 . 1 . . Projectile 61 | . . . . . . . . 5 . . . . 5 . . 4 17 10 3 . 17 AOE 348 | . 6 . 12 30 12 26 . . 44 34 . 13 35 . . 39 . . 83 14 . Terrain Rammed . | . . . . . . . . . . . . . . . . . . . . . . Walls Destroyed . | . . . . . . . . . . . . . . . . . . . . . . Machines Disabled . | . . . . . . . . . . . . . . . . . . . . . . Actions | -11 -10 -10 -9 -9 -9 -8 -8 -8 -8 -7 -7 -7 -7 -7 -7 -6 -6 -6 -6 -6 -6 --------- Run | Scr Mat Min Mat Sto Gar Mat Gar Mat Gar Fac Was Fac Low Low Dat Pro Fac Low Low Zio Dee Total 22560 | . 404 206 672 1183 580 466 1335 241 1999 861 160 480 1417 1250 275 1052 515 2816 1585 3427 1636 Wait 5752 | . 42 . 73 362 10 53 571 . 1039 21 . 90 437 119 8 289 9 943 619 963 104 Move 14816 | . 285 192 466 658 521 267 652 202 847 706 106 310 930 1083 219 711 423 1776 910 2219 1333 Hop . | . . . . . . . . . . . . . . . . . . . . . . Pick Up 234 | . 4 5 28 11 8 11 14 3 12 13 3 7 3 7 7 3 19 23 5 39 9 Fast Attach 106 | . 3 . 7 7 1 4 2 3 2 13 5 3 1 3 1 1 6 10 2 10 22 Attach 106 | . 2 3 5 3 2 9 6 2 5 8 . 7 . . 5 2 5 7 2 20 13 Detach 41 | . . . 1 1 1 3 1 1 . 4 3 2 1 . 1 . 1 3 1 10 7 Swap 268 | . 11 . 12 25 3 24 19 6 8 23 5 17 23 14 6 15 11 11 18 11 6 Drop 277 | . . . 22 24 . 7 12 3 10 21 13 9 1 8 8 1 16 27 7 38 50 Fire 738 | . 41 6 57 59 26 65 49 21 45 39 25 33 11 11 8 22 24 16 20 115 45 Melee 148 | . . . . 20 . 22 3 . 17 7 . 2 8 5 8 8 1 . 1 . 46 Ram . | . . . . . . . . . . . . . . . . . . . . . . Kick . | . . . . . . . . . . . . . . . . . . . . . . Crush 29 | . 13 . 1 3 . 1 . . . 6 . . 2 . . . . . . 2 1 Escape Stasis 38 | . . . . 10 8 . 6 . 14 . . . . . . . . . . . . Rewire 3 | . 3 . . . . . . . . . . . . . . . . . . . . Trap 4 | . . . . . . . . . . . . . . . 4 . . . . . . Miscellaneous . | . . . . . . . . . . . . . . . . . . . . . . Route ------- -11/Scrapyard -10/Materials (discovered 3 exits: *Mat x2 / [*Min]) -10/Mines -9/Materials (discovered 2 exits: Min / *Sto) -9/Storage (discovered 2 exits: *Mat / Gar) -9/Garrison (discovered 2 exits: *Mat x2) -8/Materials -8/Garrison (discovered 3 exits: *Mat x3) -8/Materials -8/Garrison (discovered 2 exits: *Fac x2) -7/Factory (discovered 2 exits: Fac / *Low) -7/Waste -7/Factory (discovered 2 exits: *Low x2) -7/Lower Caves -7/Lower Caves (discovered 2 exits: *Fac / *Dat) -7/Data Miner -6/Proximity Caves -6/Factory (discovered 3 exits: Fac / *Low x2) -6/Lower Caves -6/Lower Caves (discovered 2 exits: *Fac / *Zio) -6/Zion (discovered 2 exits: [*Dee] / [*Pro]) -6/Deep Caves (discovered 1 exit: [*Pro]) History --------- Turn | Location | Event 1 | -11/Scrapyard | Discovered new exit (range 0) 1 | -11/Scrapyard | Entered Materials 316 | -10/Materials | Build established: Mutant 366 | -10/Materials | Discovered new exit (range 4) 486 | -10/Materials | Core integrity fell below 50% 582 | -10/Materials | Discovered new exit (range 9) 592 | -10/Materials | Discovered new exit (range 15) 606 | -10/Materials | Entered Mines 649 | -10/Mines | Lost 3 parts (1p1n1w) 746 | -10/Mines | Found a damaged Exp. Sensor Array with a note attached 748 | -10/Mines | Found Prototype Device 788 | -10/Mines | Discovered new exit (range 9) 882 | -10/Mines | Entered Materials 882 | -9/Materials | Evolved 2 slots: Utility x1, Weapon x1 1184 | -9/Materials | Discovered new exit (range 14) 1217 | -9/Materials | Build established: Gunner 1597 | -9/Materials | Identified exit to Mines 1597 | -9/Materials | Identified exit to Storage 1833 | -9/Materials | Entered Storage 2427 | -9/Storage | Garrison activated, responded to threat 2794 | -9/Storage | Discovered new exit (range 13) 3500 | -9/Storage | Met a pair of Derelict thieves 3523 | -9/Storage | Garrison activated, responded to threat 3670 | -9/Storage | Identified exit to Garrison 3670 | -9/Storage | Entered Garrison 3834 | -9/Garrison | Triggered checkpoint 3895 | -9/Garrison | Discovered new exit (range 8) 3960 | -9/Garrison | Triggered checkpoint 4096 | -9/Garrison | Build established: Tank 4103 | -9/Garrison | Discovered new exit (range 12) 4132 | -9/Garrison | Installed Relay Interface Framework 4184 | -9/Garrison | Triggered checkpoint 4229 | -9/Garrison | Garrison Relay disabled 4414 | -9/Garrison | Triggered checkpoint 4444 | -9/Garrison | Garrison Relay disabled 4707 | -9/Garrison | Entered Materials 4707 | -8/Materials | Evolved 2 slots: Utility x2 5467 | -8/Materials | Identified exit to Garrison 5474 | -8/Materials | Garrison activated, responded to threat 5506 | -8/Materials | Entered Garrison 5506 | -8/Garrison | Accompanied by 1 ally 5810 | -8/Garrison | Triggered checkpoint 5956 | -8/Garrison | Discovered new exit (range 9) 5986 | -8/Garrison | Expanded RIF knowledge: Command Fork 6064 | -8/Garrison | Build established: Bothacker-Mutant 6284 | -8/Garrison | Triggered checkpoint 6342 | -8/Garrison | Garrison Relay disabled 6623 | -8/Garrison | Discovered new exit (range 14) 6734 | -8/Garrison | Triggered checkpoint 6791 | -8/Garrison | Garrison Relay disabled 6978 | -8/Garrison | Triggered checkpoint 6997 | -8/Garrison | Triggered checkpoint 7266 | -8/Garrison | Discovered new exit (range 10) 7508 | -8/Garrison | Garrison Relay disabled 7593 | -8/Garrison | Entered Materials 8080 | -8/Materials | Identified exit to Garrison 8080 | -8/Materials | Entered Garrison 8160 | -8/Garrison | Triggered checkpoint 8258 | -8/Garrison | Build established: Bothacker-Tank 8484 | -8/Garrison | Triggered checkpoint 8611 | -8/Garrison | Garrison Relay disabled 8715 | -8/Garrison | Discovered new exit (range 3) 8733 | -8/Garrison | Expanded RIF knowledge: Threat Obfuscation 8860 | -8/Garrison | Build established: Bothacker-Mutant 9560 | -8/Garrison | Triggered checkpoint 9579 | -8/Garrison | Core integrity fell below 50% 9625 | -8/Garrison | Garrison Relay disabled 9825 | -8/Garrison | Discovered new exit (range 12) 10126 | -8/Garrison | Triggered checkpoint 10195 | -8/Garrison | Garrison Relay disabled 11067 | -8/Garrison | Entered Factory 11067 | -7/Factory | Evolved 2 slots: Utility x2 12121 | -7/Factory | Discovered new exit (range 15) 12141 | -7/Factory | Discovered new exit (range 121) 12347 | -7/Factory | Fabricated Armor Integrity Analyzer? 12668 | -7/Factory | Build established: Bothacker-Tank 12672 | -7/Factory | Identified Exp. Sensor Array 12796 | -7/Factory | Sucked down chute 12796 | -7/Factory | Entered Waste 12811 | -7/Waste | EMP discharged 12834 | -7/Waste | Spotted C-40 Crusher 12877 | -7/Waste | Spotted C-40 Crusher 12881 | -7/Waste | Spotted C-40 Crusher 12900 | -7/Waste | Destroyed C-40 Crusher 12906 | -7/Waste | Destroyed C-40 Crusher 12909 | -7/Waste | Spotted C-40 Crusher 12911 | -7/Waste | EMP discharged 12911 | -7/Waste | System corruption reached 10% 12923 | -7/Waste | Destroyed C-40 Crusher 12952 | -7/Waste | Spotted C-40 Crusher 12977 | -7/Waste | Destroyed C-40 Crusher 12992 | -7/Waste | Destroyed C-40 Crusher 12996 | -7/Waste | Found Damper Plating 13011 | -7/Waste | EMP discharged 13013 | -7/Waste | Found Damper Plating 13097 | -7/Waste | Discovered new exit (range 11) 13111 | -7/Waste | EMP discharged 13117 | -7/Waste | Entered Factory 13603 | -7/Factory | Identified exit to Lower Caves 13900 | -7/Factory | Build established: Hauler-Mutant 13919 | -7/Factory | Entered Lower Caves 15000 | -7/Lower Caves | Build established: Hauler-Skirmisher 15411 | -7/Lower Caves | Build established: Hauler-Assassin 15591 | -7/Lower Caves | Discovered new exit (range 7) 15739 | -7/Lower Caves | Learned 4 Factory zone layouts 15778 | -7/Lower Caves | Encountered a Warlord checkpoint 16119 | -7/Lower Caves | Identified exit to Lower Caves 16124 | -7/Lower Caves | Entered another Lower Caves area 16329 | -7/Lower Caves | Discovered new exit (range 14) 17261 | -7/Lower Caves | Build established: Hauler-Skirmisher 17366 | -7/Lower Caves | Learned Factory terminal intel 17435 | -7/Lower Caves | Discovered new exit (range 20) 17467 | -7/Lower Caves | Identified exit to Data Miner 17985 | -7/Lower Caves | Build established: Hauler-Assassin 18284 | -7/Lower Caves | Entered Data Miner 18285 | -7/Data Miner | Discovered new exit (range 6) 18323 | -7/Data Miner | Met Data Miner 18365 | -7/Data Miner | Learned location of Section 7 (-3) 18365 | -7/Data Miner | Acquired the access code to Warlord's prototype stash 18393 | -7/Data Miner | Received God Mode back door access code from Data Miner 18443 | -7/Data Miner | Identified exit to Proximity Caves 18606 | -7/Data Miner | Interfaced with the Data Conduit 18659 | -7/Data Miner | Lost 3 parts (1p1u1w) 18761 | -7/Data Miner | Entered Proximity Caves 19072 | -6/Proximity Caves | Build established: Hauler-Skirmisher 19406 | -6/Proximity Caves | Build established: Hauler-Mutant 19818 | -6/Proximity Caves | Build established: Hauler-Assassin 19855 | -6/Proximity Caves | Learned location of 1 exit from Factory 20136 | -6/Proximity Caves | Discovered new exit (range 11) 20428 | -6/Proximity Caves | Identified exit to Factory 20435 | -6/Proximity Caves | Entered Factory 20435 | -6/Factory | Evolved 2 slots: Propulsion x1, Utility x1 20436 | -6/Factory | Identified exit to Factory 20438 | -6/Factory | Loaded intel: 307 machine locations 20439 | -6/Factory | Loaded intel: 20 terminal locations 20711 | -6/Factory | Identified exit to Lower Caves 21313 | -6/Factory | Entered Lower Caves 23346 | -6/Lower Caves | Found Prototype Device 23346 | -6/Lower Caves | Identified Heart of Steel 23396 | -6/Lower Caves | Discovered new exit (range 23) 23490 | -6/Lower Caves | Learned Factory stockpile data 24469 | -6/Lower Caves | Build established: Hauler-Mutant 25532 | -6/Lower Caves | Identified exit to Lower Caves 25563 | -6/Lower Caves | Entered another Lower Caves area 25564 | -6/Lower Caves | Encountered a Warlord checkpoint 25565 | -6/Lower Caves | Discovered exit to Factory (range 9) 25660 | -6/Lower Caves | Identified exit to Zion 25677 | -6/Lower Caves | Build established: Hauler-Assassin 27785 | -6/Lower Caves | Build established: Hauler-Skirmisher 27907 | -6/Lower Caves | Entered Zion 28066 | -6/Zion | Discovered new exit (range 12) 28125 | -6/Zion | Build established: Hauler-Mutant 53861 | -6/Zion | Found Rocket Array 53870 | -6/Zion | Found Rocket Array 53979 | -6/Zion | RIF detected upon attempting to enter Zion 53979 | -6/Zion | Attacked by Zionites 54105 | -6/Zion | NK-0LA came to Zion's defense 54209 | -6/Zion | Destroyed NK-0LA 54226 | -6/Zion | Found Prototype Energy Cannon 54226 | -6/Zion | Identified NK-0LA's Tesla Doomcannon 54244 | -6/Zion | Found Thermal Barrier 54672 | -6/Zion | Destroyed Imprinter 54682 | -6/Zion | Extracted access codes from Imprinter's data core 55386 | -6/Zion | Build established: Hauler-Tank 55768 | -6/Zion | Build established: Hauler-Mutant 55956 | -6/Zion | Found Relay Coupler [Programmer] 55959 | -6/Zion | Found Relay Coupler [Programmer] 55962 | -6/Zion | Found Relay Coupler [Programmer] 55971 | -6/Zion | Found Relay Coupler [Programmer] 55974 | -6/Zion | Found Relay Coupler [Programmer] 56269 | -6/Zion | Build established: Bothacker-Mutant 56325 | -6/Zion | Opened final containment barrier to the Deep Caves 56357 | -6/Zion | Discovered new exit (range 3) 56357 | -6/Zion | Saw the warning signs outside the Deep Caves entrance 56364 | -6/Zion | Entered Deep Caves 56366 | -6/Deep Caves | Met 5H-AD0 56545 | -6/Deep Caves | Found Surveybot 24 Scanner 56548 | -6/Deep Caves | Found Unknown Processor 56922 | -6/Deep Caves | Z-Facility disabled 57500 | -6/Deep Caves | Build established: Bothacker-Tank 57603 | -6/Deep Caves | Discovered new exit (range 7) 58064 | -6/Deep Caves | Found Zio. Weapon Casing 58085 | -6/Deep Caves | Found Zio. Weapon Casing 58335 | -6/Deep Caves | Build established: Scavenger-Mutant 58551 | -6/Deep Caves | Destroyed as-35194 59020 | -6/Deep Caves | Exposed GOLEM chamber 59086 | -6/Deep Caves | Triggered Deep Caves wall 59142 | -6/Deep Caves | Spotted AS-78783 59152 | -6/Deep Caves | Build established: Hauler-Mutant 59152 | -6/Deep Caves | Spotted AS-24148 59156 | -6/Deep Caves | Destroyed 34 combat bots 59184 | -6/Deep Caves | Spotted as-70193 59185 | -6/Deep Caves | Core integrity fell below 50% 59203 | -6/Deep Caves | Core integrity fell below 20% 59210 | -6/Deep Caves | Released all parts (6) 59212 | -6/Deep Caves | Destroyed by as-70193 with Assembled Focal Cannon Last Messages --------------- 59188_ as-67163 GOLEM Unit beginning Prototype Leg integration. 59189_ Unknown Device springs to life. 59192_ Destroyed Com. Matter Pod. 59192_ AS-78783 system corrupted by crushing effect. 59195_ Penetrated by Slug. 59196_ An Unknown Device tumbles out of the Wall Chamber. 59198_ Unknown Device springs to life. 59199_ as-40106 GOLEM Unit beginning Prototype Leg integration. 59201_ Penetrated by Slug. 59205_ Slammed into AS-24148. 59206_ Imp. Medium Treads destroyed. 59206_ Hvy. Flail destroyed. 59209_ NK-0LA's Tesla Doomcannon destroyed. 59210_ Released Hcp. Storage Unit. 59210_ Released Exp. Heat Sink. 59210_ Released Hcp. Storage Unit. 59210_ Released Exp. Energy Well. 59211_ Self-destruct Interrupter emitting active interruption sequence. 59211_ Penetrated by Slug. 59212_ Unknown Device springs to life. Map ----- +----------------------------------------------------+ | ?????????????????????????????????# #### # | | ?????????"" ???????????????????# #??# # | | ????????? ?????????????????# #??# # | | ????????? ???????????#### #### # | | ????????? ????????## # | | ????????? ??????# | | ?????????! [ ??????## | | ????????? #??????# | | ????????? ??????# | | ?????????" #?##????# | | ????????"" * #?# ???## | | ??????### ### ???# # | | ??""""" # ??# ## | | ??" ##?## ## ##? | | ??" h ###### ## #?? | | ??" ] ???# ## #?? | | ??" a A #????# ## ##? | | ??" =] ##???# ## ## | | ??" ![ ] l #???# # | | ??" ]!! = ] #???# | | ??""""" !!!!A #???#### # | | ??????### &!& = #??????# ## | | ???????"GG !& = #???#### ## | | ???????"GG = #???# # | | ??????#""" | #???# ## | | ??????# "" @=M ##??# ### | | ???????" " #??# #?## # | | ???????## #### #??# ## | | ????????" l ## ##?# #? | | ????????" = ## ### #? | | ????????" == a ## | | ????????""" ## | | ????????" l | | ????????"" #### | | ????????" #??# | | ????????"" ##??# | | ????????" # # #???# #### | | ????????" #### ## ## ##???## ##??# | | ????????""" ###??# ## ####?????#####???? | | ?????????" ####? ?????????????????? | | ?????????##########????#?????????????????? | | | | | | | | | | | | | | | | | | | +----------------------------------------------------+ Best States ------------- Heat Dissipation 63 Energy Generation 21 Energy Capacity 1500 Matter Stores 300 Matter Capacity 300 Sight Range 16 Robot Scan Range 30 Terrain Scan Range 24 Terrain Scan Density 135 Jamming Range 12 Armor Coverage 1600 Resistance: TH 50 Resistance: EM 90 Weapon Shielding 100 Evasion (%) 40 Targeting Accuracy 8 Armor Integrity Analysis 33 Recoil Reduction 3 Particle Charging 15 Salvage Targeting 4 Offensive Hacking 10 Defensive Hacking 10 Relay Coupler Types 54 Relay Coupler Value 3 Item Schematics ----------------- Armor Integrity Analyzer | -9/Materials | Hacked Hcp. Storage Unit | -9/Materials | Hacked Combat Drone Bay | -7/Data Miner | Free Lgt. Regenerative Plating | -7/Data Miner | Free Exp. Targeting Computer | -7/Data Miner | Free Cloaking Device | -7/Data Miner | Free Mni. Smartbomb Launcher | -7/Data Miner | Free Robot Schematics ------------------ S-27 Virus | -7/Data Miner | Free G-50 Soldier | -7/Data Miner | Free G-67 Veteran | -7/Data Miner | Free H-66 Slayer | -7/Data Miner | Free I-36 Angel | -7/Data Miner | Free Fabricated ------------ Armor Integrity Analyzer | x1 | -7/Factory Alien Tech Used ----------------- None Achievements -------------- None Challenges ------------ None Game ------ Seed SwordHelicalSegregator Manual? 0 Play Time 05:46:25 Cumulative 406.8 hours Start 2020.10.02 @ 20:55:19 End 2020.10.10 @ 19:19:32 Sessions 3 Manual Loads 0 Difficulty Rogue Special Mode None Game No. 57 Rogue 57 Adventurer 0 Explorer 0 Win Type - Total 20 Types 10/4/1/0/2/0/3/0/0 Lore% 87 Gallery% 94 Achievement% 79 Wizard Run 0 Options --------- ASCII 0 Keyboard 0 Movement Numpad Keybinds 0 Fullscreen 2 Font 18/Terminus Map View 76x50 Tactical HUD 1 Map Filters NONE Filters NONE Steam 1 RUN: 76eddc37-752b-473a-9d8a-f3d85534b4f5